bitfinex-derivatives/quotes_ETHF0:USTF0_20251007
["timestamp","ask_amount","ask_price","bid_price","bid_amount"]
[1759866021741,1.9495,4479.4,4479.3,1.6409]
[1759866021941,1.9495,4479.4,4479.3,1.1732]
[1759866022652,1.9495,4479.4,4479.3,1.6409]
[1759866022855,1.7255,4479.4,4479.3,1.6409]
[1759866023149,1.9495,4479.4,4479.3,1.6409]
[1759866023547,0.9828,4479.4,4479.3,1.6409]
[1759866023752,0.7159,4479.4,4479.3,1.6409]
[1759866023952,1.9495,4479.4,4479.3,1.1732]
[1759866025045,1.9495,4479.4,4479.3,1.57488]
[1759866025241,1.9495,4479.4,4479.3,0.40168]
[1759866025442,1.9495,4479.4,4479.3,1.1732]
[1759866025754,1.7255,4479.2,4479.1,1.1206]
[1759866026055,1.7255,4479.2,4479.1,2.77218789]
[1759866028152,1.7255,4479.2,4479.1,3.23988789]
[1759866029157,4.6413034,4479.2,4479.1,1.19728789]
[1759866029458,4.6413034,4479.2,4478.9,0.00244209]
[1759866029459,0.9828,4479.1,4479.0,1.19728789]
[1759866029956,4.86906283,4479.1,4478.9,1.19972998]
[1759866030161,4.86906283,4479.1,4479.0,1.19728789]
[1759866030449,4.86906283,4479.1,4478.9,1.19972998]
[1759866030656,2.2273,4479.0,4478.9,0.00244209]
[1759866030855,2.2273,4479.0,4478.9,0.72134209]
[1759866031056,5.19329782,4479.0,4478.9,1.12306209]
[1759866033360,5.19329782,4479.0,4478.9,0.00244209]
[1759866034257,1.00414,4479.7,4478.9,0.00244209]
[1759866034258,0.2778,4480.0,4478.9,4.53396209]
[1759866034558,0.00233214,4480.1,4478.9,4.53396209]
[1759866034559,0.47989899,4479.9,4479.8,2.04254]
[1759866034757,0.47989899,4479.9,4479.8,0.7189]
[1759866034758,2.20539899,4479.9,4479.8,0.7189]
[1759866034959,1.46269899,4479.9,4479.8,1.6409]
[1759866036263,2.20539899,4479.9,4479.8,1.6409]
[1759866036664,1.46269899,4479.9,4479.8,1.6409]
[1759866037064,1.68669899,4479.9,4479.8,1.6409]
[1759866037267,1.19579899,4479.9,4479.8,1.6409]
[1759866037863,1.19581168,4479.9,4479.8,1.6409]
[1759866038054,0.47991168,4479.9,4479.8,1.6409]
[1759866038251,0.97181168,4479.9,4479.8,1.6409]
[1759866038456,0.47991168,4479.9,4479.8,1.6409]
[1759866040162,1.66331168,4479.9,4479.8,1.6409]
[1759866040362,0.94001168,4479.9,4479.8,1.6409]
[1759866040553,0.1506593,4479.9,4479.8,6.8649]
[1759866040758,2.14e-06,4480.1,4480.0,1.9526]
[1759866041065,1.66179744,4481.1,4481.0,1.9526]
[1759866041462,4.49905692,4481.1,4481.0,1.9526]
[1759866041862,4.50193808,4481.1,4481.0,1.9526]
[1759866042258,2.84014064,4481.1,4481.0,1.9526]
[1759866042461,1.60055275,4482.4,4482.3,0.4832]
[1759866042663,2.51545275,4482.4,4482.3,4.8666]
[1759866042866,3.80002498,4482.4,4482.3,4.8666]
[1759866043060,0.9149,4482.4,4482.3,4.8666]
[1759866043266,4.52332498,4482.4,4482.3,4.8666]
[1759866043569,4.52610557,4482.4,4482.3,4.86872818]
[1759866043957,3.80280557,4482.4,4482.3,4.86872818]
[1759866044768,3.34800557,4482.4,4482.3,4.86872818]
[1759866045070,0.00278059,4482.4,4482.3,4.86872818]
[1759866046776,0.46288059,4482.4,4482.3,4.86872818]
[1759866048074,0.00278059,4482.4,4482.3,4.86872818]
[1759866054776,0.00278059,4482.4,4482.3,5.27013818]
[1759866058086,0.49448059,4482.4,4482.3,5.27013818]
[1759866058485,1.69958059,4482.4,4482.3,5.49413818]
[1759866058881,0.97968059,4482.4,4482.3,5.49413818]
[1759866059380,1.69958059,4482.4,4482.3,4.80093818]
[1759866059581,1.69958059,4482.4,4482.3,3.61133818]
[1759866059781,1.69958059,4482.4,4482.3,4.74883818]
[1759866060389,0.00278059,4482.4,4482.3,5.20433818]
[1759866060889,0.49448059,4482.4,4482.3,5.20433818]
[1759866061184,1.69958059,4482.4,4482.3,4.80292818]
[1759866062584,1.69958059,4482.4,4482.3,3.88662818]
[1759866062892,9.57610542,4482.4,4482.3,3.20992818]
[1759866063389,9.57610542,4482.4,4482.3,0.00212818]
[1759866063985,9.57610542,4482.4,4482.3,0.40353818]
[1759866064286,9.57610542,4482.4,4482.3,1.54103818]
[1759866064988,9.57610542,4482.4,4482.3,0.40353818]
[1759866065883,9.80010542,4482.4,4482.3,0.40353818]
[1759866067284,9.8134405,4482.4,4482.3,0.40353818]
[1759866068584,9.8134405,4482.4,4482.3,1.54103818]
[1759866068878,9.5894405,4482.4,4482.3,1.54103818]
[1759866069081,9.8134405,4482.4,4482.3,1.54103818]
[1759866070387,9.8134405,4482.4,4482.3,0.40353818]
[1759866070579,13.0212405,4482.4,4482.3,0.00212818]
[1759866070786,1.6968,4481.4,4481.3,3.2078]
[1759866070980,1.9208,4481.4,4481.3,3.2078]
[1759866071290,4.79656293,4481.4,4481.3,3.2078]
[1759866071689,4.79656293,4481.4,4481.3,3.2095186]
[1759866073087,0.2774,4481.0,4480.7,3.2078]
[1759866073290,0.2774,4481.0,4480.8,0.40155]
[1759866073291,1.93413508,4480.9,4480.8,0.40155]
[1759866073493,4.77322233,4480.9,4480.8,0.40155]
[1759866074193,4.77322233,4480.9,4480.8,0.40326611]
[1759866076495,4.78049703,4480.9,4480.8,0.40326611]
[1759866076890,4.56377173,4480.9,4480.8,0.40326611]
[1759866077092,4.78777173,4480.9,4480.8,0.40326611]
[1759866077596,4.78777173,4480.9,4480.8,1.59336611]
[1759866079087,4.78777173,4480.9,4480.8,0.40326611]
[1759866083494,4.78777173,4480.9,4480.8,0.00171611]
[1759866084098,5.18931173,4480.9,4480.8,0.00171611]
[1759866091998,4.56377173,4480.9,4480.8,2.05616611]
[1759866092396,0.02788448,4480.9,4480.8,2.05616611]
[1759866093097,0.6662,4481.6,4481.5,1.59159]
[1759866093098,1.6228,4481.6,4481.5,1.59159]
[1759866093496,4.48499374,4481.6,4481.5,1.59159]
[1759866094297,4.70899374,4481.6,4481.5,1.59159]
[1759866094494,3.34889374,4481.6,4481.5,2.32969]
[1759866094699,3.57289374,4481.6,4481.5,2.32969]
[1759866097206,3.34889374,4481.6,4481.5,2.32969]
[1759866097503,1.6228,4482.3,4482.2,2.05432]
[1759866097704,2.31507067,4482.3,4482.2,2.05432]
[1759866098005,5.25962703,4482.3,4482.2,2.05432]
[1759866100598,5.25962703,4482.3,4481.7,3.9229]
[1759866100906,1.6487,4481.8,4481.7,3.60926]
[1759866101105,2.34097067,4481.8,4481.7,3.2078]
[1759866101309,5.70524843,4481.8,4481.6,0.40147]
[1759866101603,2.11697067,4481.7,4481.6,0.40147]
[1759866102004,4.97870658,4481.7,4481.6,0.40147]
[1759866104610,4.97870658,4481.7,4481.6,1.11657]
[1759866104806,4.51043591,4481.7,4481.6,1.11657]
[1759866105713,4.51043591,4481.7,4481.6,2.04907]
[1759866106508,3.79343591,4481.7,4481.6,5.25687]
[1759866106711,1.6274,4482.3,4482.2,1.98311]
[1759866106908,2.31988867,4482.3,4482.2,1.98311]
[1759866107115,5.16454868,4482.3,4482.2,1.98311]
[1759866110115,4.69606001,4482.3,4482.2,1.51961]
[1759866111914,2.84466001,4482.3,4482.2,5.19091]
[1759866112217,0.00278059,4482.4,4482.3,1.98311]
[1759866112414,0.00278059,4482.4,4482.3,2.14733979]
[1759866113514,0.47908059,4482.4,4482.3,1.98311]
[1759866114315,0.47908059,4482.4,4482.2,8.2078]
[1759866114316,1.59461,4482.3,4482.2,3.2078]
[1759866114515,1.6274,4481.8,4481.5,0.40149]
[1759866114713,1.6274,4481.6,4481.5,0.84139]
[1759866115020,4.58953278,4481.6,4481.5,1.51969]
[1759866116311,4.58953278,4481.6,4481.5,1.5817]
[1759866117819,4.58953278,4481.6,4481.5,1.8664]
[1759866118715,3.87263278,4481.6,4481.5,1.8664]
[1759866118920,4.09663278,4481.6,4481.5,1.8664]
[1759866119119,3.87263278,4481.6,4481.5,1.8664]
[1759866119319,4.09663278,4481.6,4481.5,1.8664]
[1759866119517,0.47908059,4482.4,4482.3,1.98311]
[1759866119719,2.32211883,4482.4,4482.3,1.5817]
[1759866119919,5.2235576,4482.4,4482.3,1.5817]
[1759866120216,4.9995576,4482.4,4482.3,1.5817]
[1759866120416,5.2235576,4482.4,4482.3,1.5817]
[1759866120818,4.5066576,4482.4,4482.3,1.5817]
[1759866121525,5.2235576,4482.4,4482.3,1.5817]
[1759866122119,4.40108689,4483.1,4483.0,0.40135]
[1759866122120,2.22328719,4483.1,4483.0,0.40135]
[1759866122324,2.80096731,4484.6,4483.0,0.40135]
[1759866122325,0.4763,4484.0,4483.9,1.54307]
[1759866122520,0.4763,4484.5,4484.4,1.98293]
[1759866122824,0.4763,4484.5,4484.4,5.19073]
[1759866123215,0.47834125,4484.5,4484.4,5.19349277]
[1759866123620,4.46339764,4484.5,4484.4,3.61179277]
[1759866123914,4.72729764,4484.5,4484.4,3.61179277]
[1759866124718,4.72729764,4484.5,4484.4,3.21056277]
[1759866124924,4.72729764,4484.5,4484.4,3.61179277]
[1759866125421,4.72729764,4484.5,4484.4,3.21056277]
[1759866125422,9.72729764,4484.5,4484.4,3.21056277]
[1759866125623,0.9911,4483.5,4483.4,0.40131]
[1759866125927,0.9911,4483.5,4482.7,0.224]
[1759866125928,0.9105,4483.1,4483.0,0.40135]
[1759866126223,4.75196952,4483.1,4483.0,0.84125]
[1759866126425,4.75196952,4483.1,4483.0,1.51955]
[1759866126627,4.75196952,4483.1,4483.0,1.52120201]
[1759866126827,4.76921612,4483.1,4483.0,1.52120201]
[1759866127226,4.54521612,4483.1,4483.0,1.52120201]
[1759866127427,4.76921612,4483.1,4483.0,1.52120201]
[1759866127921,4.54521612,4483.1,4483.0,1.52120201]
[1759866128229,4.76921612,4483.1,4483.0,0.40300201]
[1759866129128,4.76921612,4483.1,4483.0,1.52120201]
[1759866129321,4.54521612,4483.1,4483.0,1.52120201]
[1759866129523,4.76921612,4483.1,4483.0,1.52120201]
[1759866130223,0.4935466,4483.1,4483.0,2.26940201]
[1759866130925,0.7169,4483.8,4483.7,0.40129]
[1759866131226,4.49358994,4483.8,4483.7,0.36638213]
[1759866131420,4.71758994,4483.8,4483.7,0.36638213]
[1759866131822,4.49358994,4483.8,4483.7,0.36638213]
[1759866132220,4.71758994,4483.8,4483.7,1.48458213]
[1759866132521,4.71758994,4483.8,4482.0,11.62987352]
[1759866132729,4.71758994,4483.8,3083.8,1.51701653]
[1759866132730,0.2758,4479.5,4479.3,2.95863144]
[1759866132917,1.00453,4478.0,4477.1,0.6783]
[1759866133119,10.04389,4478.6,4476.0,0.2847]
[1759866133120,1.00456,4477.8,4476.0,0.2847]
[1759866133321,1.0046,4477.6,4475.0,0.2847]
[1759866133522,0.40191,4476.8,4476.5,0.2847]
[1759866133725,0.40196,4476.2,4475.5,0.2867695]
[1759866133929,3.83377,4476.1,4476.0,0.2847]
[1759866134130,6.7097699,4476.1,4476.0,0.2847]
[1759866134332,6.7097699,4476.1,4475.6,40.8]
[1759866134333,0.40199,4475.9,4475.6,40.8]
[1759866134525,0.40201,4475.7,4475.5,0.2867695]
[1759866134728,3.2078,4475.6,4475.5,0.0020695]
[1759866134925,6.3077999,4475.6,4475.5,0.0020695]
[1759866135126,0.4021,4474.6,4474.5,0.963]
[1759866135326,3.6099,4474.6,4474.5,0.963]
[1759866135631,3.50915327,4474.6,4474.5,41.763]
[1759866136028,3.50915327,4474.6,4474.5,41.76510343]
[1759866136328,6.71695327,4474.6,4474.5,41.76510343]
[1759866136528,6.71695327,4474.6,4474.5,0.00210343]
[1759866137027,7.29740882,4474.6,4474.5,0.00210343]
[1759866137230,7.52140882,4474.6,4474.5,0.00210343]
[1759866137630,7.52140882,4474.6,4474.5,1.08280343]
[1759866140230,7.52140882,4474.6,4474.5,0.00210343]
[1759866141227,0.40214,4474.2,4474.1,41.8807]
[1759866141428,3.0064403,4474.2,4474.1,41.8807]
[1759866141627,5.95964319,4474.2,4474.1,41.8807]
[1759866141828,4.15979844,4474.2,4474.1,41.8807]
[1759866142334,5.73761626,4474.2,4474.1,41.88267202]
[1759866142832,5.73562555,4474.2,4474.1,41.88267202]
[1759866143228,4.16177151,4474.2,4474.1,41.88267202]
[1759866144730,4.38577151,4474.2,4474.1,41.88267202]
[1759866145231,5.95793238,4474.2,4474.1,41.88267202]
[1759866145831,4.38577151,4474.2,4474.1,41.88267202]
[1759866147631,4.16177151,4474.2,4474.1,41.88267202]
[1759866147832,5.72945473,4474.2,4474.1,41.88267202]
[1759866148332,4.16177151,4474.2,4474.1,41.88267202]
[1759866148741,4.16177151,4474.2,4474.1,42.10667202]
[1759866149140,4.16177151,4474.2,4474.1,1.30667202]
[1759866149336,0.80642862,4474.2,4474.1,1.30667202]
[1759866149637,0.80642862,4474.2,4474.1,47.10667202]
[1759866153346,1.98127066,4474.2,4474.1,47.10667202]
[1759866154252,0.80642862,4474.2,4474.1,47.10667202]
[1759866155249,1.98302766,4474.2,4474.1,47.10667202]
[1759866155647,1.98302766,4474.2,4474.1,42.10667202]
[1759866155850,4.5708668,4474.2,4474.1,1.30667202]
[1759866156051,4.8487668,4474.2,4474.1,1.30667202]
[1759866156454,4.5708668,4474.2,4474.1,1.99097202]
[1759866156653,4.5708668,4474.2,4474.1,1.30667202]
[1759866157244,5.0727668,4474.2,4474.1,0.00197202]
[1759866157648,5.4749068,4474.2,4474.1,0.00197202]
[1759866158256,7.04194952,4474.2,4474.1,0.00197202]
[1759866158456,5.4749068,4474.2,4474.1,0.00197202]
[1759866159459,5.4749068,4474.2,4474.1,1.09787202]
[1759866160353,7.04194952,4474.2,4474.1,1.09787202]
[1759866160757,5.4749068,4474.2,4474.1,1.09787202]
[1759866162355,2.83217,4473.9,4473.8,0.9383]
[1759866162554,3.63662555,4473.9,4473.8,0.9383]
[1759866162761,6.58688473,4473.9,4473.8,0.9383]
[1759866163351,6.58688473,4473.9,4473.8,0.94077077]
[1759866163754,5.55418473,4473.9,4473.8,1.61217077]
[1759866164457,5.55418473,4473.9,4473.8,2.70807077]
[1759866165362,6.58688473,4473.9,4473.8,2.70807077]
[1759866166667,5.55418473,4473.9,4473.8,2.70807077]
[1759866167466,6.64498473,4473.9,4473.8,2.70807077]
[1759866168364,8.25307527,4473.9,4473.8,2.70807077]
[1759866169469,6.86898473,4473.9,4473.8,0.00247077]
[1759866172569,6.19853687,4473.9,4473.8,0.32342201]
[1759866173071,6.60070687,4473.9,4473.8,0.32342201]
[1759866173468,6.60070687,4473.9,4473.8,0.00247077]
[1759866174668,6.37670687,4473.9,4473.8,1.71027077]
[1759866174871,4.21193687,4473.9,4473.8,5.62107077]
[1759866175175,0.00197307,4474.2,4474.1,2.4108]
[1759866175674,0.00197307,4474.2,4474.1,43.2108]
[1759866176762,0.00197307,4474.2,4474.1,43.4348]
[1759866179078,0.40214,4474.3,4474.2,2.4108]
[1759866179778,3.6099,4474.6,4474.5,1.79]
[1759866180079,3.61270355,4474.6,4474.5,3.0435]
[1759866180577,4.30540355,4474.6,4474.5,3.0435]
[1759866182676,0.40490355,4474.6,4474.5,3.0435]
[1759866185273,1.09760355,4474.6,4474.5,3.0435]
[1759866186378,1.09760355,4474.6,4474.5,2.8195]
[1759866188685,1.09760355,4474.6,4474.0,1.0295]
[1759866188686,2.86905,4474.1,4474.0,1.0295]
[1759866189186,5.7291958,4474.1,4474.0,1.7078]
[1759866189887,6.19048094,4474.1,4474.0,1.7078]
[1759866191683,6.19048094,4474.1,4474.0,2.8195]
[1759866191684,3.2622958,4474.1,4474.0,2.8195]
[1759866192282,1.20596732,4475.4,4474.0,2.8195]
[1759866192283,0.41963308,4475.5,4475.2,1.0138]
[1759866192588,1.09467,4476.1,4476.0,2.8195]
[1759866192889,1.83712885,4476.1,4476.0,2.6348]
[1759866193388,1.83886181,4476.1,4476.0,2.6348]
[1759866193890,1.37783296,4476.1,4476.0,2.6348]
[1759866194088,1.83879846,4476.1,4476.0,2.6348]
[1759866194490,2.92959846,4476.1,4476.0,2.6348]
[1759866195286,2.92959846,4476.1,4476.0,0.224]
[1759866195590,2.92959846,4476.1,4476.0,0.9023]
[1759866195989,2.92959846,4476.1,4476.0,0.9033]
[1759866196489,1.15539846,4476.1,4476.0,3.0445]
[1759866196890,0.46269846,4476.1,4476.0,3.0445]
[1759866199988,0.224,4477.2,4476.0,3.0445]
[1759866199989,0.57884732,4477.3,4477.2,0.6772]
[1759866200187,1.0344,4478.8,4478.7,2.4534]
[1759866200385,2.4038,4478.8,4478.7,0.6983]
[1759866200587,2.4038,4478.8,4478.7,41.024]
[1759866200982,5.35592806,4478.8,4478.7,41.02567928]
[1759866201184,5.35592806,4478.8,4478.7,0.22567928]
[1759866213006,5.75765806,4478.8,4478.7,0.22567928]
[1759866215407,5.75765806,4478.8,4478.7,0.00167928]
[1759866216905,5.98165806,4478.8,4478.7,0.69997928]
[1759866218002,5.98165806,4478.8,4478.7,0.00167928]
[1759866218909,5.98165806,4478.8,4478.7,0.73317928]
[1759866219407,5.75765806,4478.8,4478.7,0.73317928]
[1759866220202,5.75765806,4478.8,4478.7,0.00167928]
[1759866221008,5.75765806,4478.8,4478.7,0.73317928]
[1759866222309,5.75765806,4478.8,4478.7,2.91911928]
[1759866222310,0.00283736,4478.8,4478.7,2.91911928]
[1759866223006,2.92686736,4478.8,4478.7,0.00167928]
[1759866223205,5.84761258,4478.8,4478.7,0.00167928]
[1759866224705,5.84761258,4478.8,4477.9,3.2078]
[1759866224706,1.5532,4478.0,4477.9,3.2078]
[1759866224911,1.5532,4478.0,4477.7,0.59931523]
[1759866224912,3.35064,4477.5,4477.4,3.80711523]
[1759866225213,3.35064,4477.5,4477.4,4.53861523]
[1759866225407,3.35064,4477.5,4477.4,5.23151523]
[1759866225712,3.35064,4477.5,4477.4,5.23313605]
[1759866226412,3.35064,4477.5,4477.4,5.72512082]
[1759866227613,3.35064,4477.5,4477.4,4.63382082]
[1759866228101,3.35064,4477.5,4477.4,3.94092082]
[1759866228714,2.89507,4477.2,4477.0,0.59589231]
[1759866229017,3.31139,4477.0,4476.9,3.80369231]
[1759866229212,3.53539,4477.0,4476.9,3.80369231]
[1759866229414,6.48310114,4477.0,4476.9,4.5551]
[1759866229604,6.25910114,4477.0,4476.9,4.5551]
[1759866229807,6.48310114,4477.0,4476.9,4.55683784]
[1759866230017,6.25910114,4477.0,4476.9,4.55683784]
[1759866230208,6.25910114,4477.0,4476.9,5.57423784]
[1759866230209,5.11140114,4477.0,4476.9,5.57423784]
[1759866230513,5.33540114,4477.0,4476.9,5.57423784]
[1759866231612,6.48310114,4477.0,4476.9,4.55683784]
[1759866233921,6.48310114,4477.0,4476.9,3.20953784]
[1759866235420,6.48310114,4477.0,4476.9,4.00862482]
[1759866235620,6.48310114,4477.0,4476.9,3.20953784]
[1759866236311,6.48310114,4477.0,4476.9,4.00862482]
[1759866236516,6.48310114,4477.0,4476.9,0.80082482]
[1759866236717,6.48310114,4477.0,4476.9,0.00173784]
[1759866241419,6.48310114,4477.0,4476.9,0.79953162]
[1759866241729,2.89513,4476.6,4476.5,1.20105928]
[1759866241924,3.11913,4476.6,4476.5,1.20105928]
[1759866242229,5.97764191,4476.6,4476.5,1.20105928]
[1759866242626,5.97764191,4476.6,4476.5,1.20290174]
[1759866242826,5.97764191,4476.6,4476.5,0.00184246]
[1759866243024,2.89517,4476.1,4476.0,0.001]
[1759866243226,6.32697,4476.1,4476.0,0.001]
[1759866243421,9.27597148,4476.1,4476.0,0.001]
[1759866243926,9.27597148,4476.1,4476.0,0.00335605]
[1759866245231,2.89523,4475.4,4475.3,3.2078]
[1759866245529,5.97593093,4475.4,4475.3,5.5725]
[1759866245724,5.97593093,4475.4,4475.3,4.5551]
[1759866246118,5.97829016,4475.4,4475.3,3.88398519]
[1759866246319,5.97829016,4475.4,4475.3,0.00288519]
[1759866248325,5.97829016,4475.4,4474.4,0.40212]
[1759866248326,1.1156,4474.6,4474.5,0.224]
[1759866248525,1.84702,4474.4,4474.2,4.40885928]
[1759866248730,2.4932,4474.3,4474.2,4.40885928]
[1759866248930,2.4932,4474.3,4474.2,5.08215928]
[1759866249129,2.4932,4474.3,4474.2,4.40885928]
[1759866249431,2.4932,4474.3,4473.7,1.60428937]
[1759866249432,2.9095,4474.0,4473.9,1.20105928]
[1759866249728,6.39305235,4474.0,4473.8,1.20105928]
[1759866250431,6.39305235,4474.0,4473.8,1.20341559]
[1759866250826,6.39305235,4474.0,4473.8,0.00235631]
[1759866251225,6.39305235,4474.0,4473.7,4.40885928]
[1759866251226,1.84708,4473.8,4473.7,3.2078]
[1759866251433,2.89542,4473.3,4473.2,3.2078]
[1759866251634,3.11942,4473.3,4473.2,3.2078]
[1759866251931,3.11942,4473.3,4472.8,0.224]
[1759866251932,3.31175,4473.0,4472.8,0.224]
[1759866252233,3.53575,4473.0,4472.9,0.02412456]
[1759866252431,3.31175,4473.0,4472.9,0.69742456]
[1759866252633,0.4163,4473.5,4472.9,6.77367456]
[1759866252634,0.40222,4473.4,4472.9,6.77367456]
[1759866252832,1.0483,4473.3,4473.2,5.5725]
[1759866253325,1.2723,4473.3,4473.2,5.5725]
[1759866253732,1.0483,4473.3,4473.2,5.5725]
[1759866253929,1.0483,4473.5,4473.4,2.76691]
[1759866254123,1.2723,4473.8,4473.7,0.6733]
[1759866254324,1.2723,4473.8,4473.7,5.5725]
[1759866254528,2.86416699,4473.9,4473.7,5.5725]
[1759866254729,1.7618,4474.2,4474.1,2.3647]
[1759866254926,1.9858,4474.2,4474.1,2.3647]
[1759866255129,4.84996699,4474.2,4474.1,2.3647]
[1759866255535,5.58136699,4474.2,4474.1,1.3473]
[1759866256128,5.58136699,4474.2,4474.1,2.3647]
[1759866256533,3.2078,4474.8,4474.4,1.4299]
[1759866256534,1.4646,4474.5,4474.4,1.4299]
[1759866256831,4.53213362,4474.5,4474.4,2.437]
[1759866257027,6.28963362,4474.5,4474.4,1.4299]
[1759866257233,6.28963362,4474.5,4474.4,0.7263]
[1759866257741,6.28963362,4474.5,4473.6,0.7263]
[1759866257742,2.08539,4473.7,4473.6,0.7263]
[1759866258031,2.77181,4473.4,4473.3,3.9341]
[1759866258339,2.3696,4473.4,4473.3,5.6448]
[1759866258837,2.3696,4473.4,4473.3,4.6377]
[1759866259432,1.7062,4473.4,4473.3,5.6448]
[1759866259635,1.0198,4473.4,4473.3,5.6448]
[1759866260240,1.7062,4473.4,4473.3,5.6448]
[1759866260435,2.3696,4473.4,4473.3,4.6377]
[1759866261641,1.7062,4473.4,4473.3,4.6377]
[1759866261942,1.7062,4473.4,4473.3,5.6448]
[1759866262137,1.7062,4473.4,4473.3,4.6377]
[1759866262337,2.3696,4473.4,4473.3,4.6377]
[1759866264542,2.77181,4473.4,4473.3,4.6377]
[1759866264740,2.77181,4473.4,4473.0,0.7263]
[1759866264741,2.68875,4473.4,4473.0,0.7263]
[1759866264942,3.17955,4473.0,4472.9,0.02412456]
[1759866265135,3.40355,4473.0,4472.9,0.02412456]
[1759866265445,6.27225279,4473.0,4472.9,0.02412456]
[1759866265645,6.04825279,4473.0,4472.9,0.02412456]
[1759866265944,6.27225279,4473.0,4472.9,0.02412456]
[1759866266835,6.27225279,4473.0,4472.9,1.45402456]
[1759866266836,6.04825279,4473.0,4472.9,1.45402456]
[1759866267035,6.27225279,4473.0,4472.9,1.45402456]
[1759866267538,6.04825279,4473.0,4472.9,1.45402456]
[1759866267743,6.27225279,4473.0,4472.9,1.45402456]
[1759866268741,6.04825279,4473.0,4472.9,1.45402456]
[1759866268945,6.27225279,4473.0,4472.9,1.45402456]
[1759866270446,6.04825279,4473.0,4472.9,1.45402456]
[1759866270646,6.27225279,4473.0,4472.9,1.45402456]
[1759866272249,6.27225279,4473.0,4472.9,0.75042456]
[1759866272446,6.27225279,4473.0,4472.9,0.02412456]
[1759866274044,6.27225279,4473.0,4472.9,0.75042456]
[1759866277747,6.27225279,4473.0,4472.9,0.02412456]
[1759866279251,6.04825279,4473.0,4472.9,0.02412456]
[1759866279450,6.27225279,4473.0,4472.9,0.02412456]
[1759866280357,6.27225279,4473.0,4472.9,0.71832456]
[1759866281358,6.27225279,4473.0,4472.9,0.02412456]
[1759866282459,6.04825279,4473.0,4472.9,0.02412456]
[1759866282756,6.27225279,4473.0,4472.9,0.02412456]
[1759866283159,6.27225279,4473.0,4472.9,0.71832456]
[1759866283356,6.04825279,4473.0,4472.9,2.38142456]
[1759866283660,6.27225279,4473.0,4472.9,0.02412456]
[1759866284758,0.40231,4472.3,4472.2,0.79767056]
[1759866284950,0.40236,4471.8,4471.7,1.19417642]
[1759866285150,3.04376,4471.8,4471.7,1.3629]
[1759866285356,5.76066726,4471.8,4471.7,2.3573]
[1759866285657,5.98466726,4471.8,4471.7,2.3573]
[1759866285858,5.98743925,4471.8,4471.7,1.36493624]
[1759866287360,5.98743925,4471.8,4471.7,0.00203624]
[1759866287760,9.66641093,4471.8,4471.7,0.00203624]
[1759866288157,0.40244,4470.9,4470.8,1.89507292]
[1759866288352,2.83714,4470.9,4470.8,0.6934]
[1759866289163,2.4347,4470.9,4470.8,1.40507459]
[1759866289656,2.4347,4470.9,4470.8,2.42767459]
[1759866290461,0.4188,4471.5,4471.3,2.4254]
[1759866290462,2.12149,4471.4,4471.3,2.4254]
[1759866292057,1.047,4471.7,4471.4,1.0226]
[1759866292259,1.44937,4471.7,4471.6,2.4254]
[1759866292458,5.07693041,4471.7,4471.6,2.4254]
[1759866294058,5.79253041,4471.7,4471.6,1.4028]
[1759866294560,5.39016041,4471.7,4471.6,1.4028]
[1759866296160,0.224,4472.7,4471.6,1.4028]
[1759866296161,1.271,4472.6,4472.5,1.4028]
[1759866296365,2.41769572,4472.6,4472.5,2.4254]
[1759866296555,6.09710744,4472.6,4472.5,1.4028]
[1759866297061,5.87310744,4472.6,4472.5,1.4028]
[1759866297259,6.09890862,4472.6,4472.5,2.4254]
[1759866297662,2.1954969,4472.6,4472.5,2.4254]
[1759866297965,3.1350969,4472.6,4472.5,0.6934]
[1759866298466,2.66050118,4472.6,4472.5,1.4028]
[1759866298667,3.1351871,4472.6,4472.5,1.4028]
[1759866298966,2.66050118,4472.6,4472.5,1.4028]
[1759866299266,2.43650118,4472.6,4472.5,1.4028]
[1759866300259,2.43650118,4472.6,4472.2,0.224]
[1759866300260,1.3877,4472.3,4472.1,3.2078]
[1759866300560,0.00180118,4472.6,4472.5,2.8261]
[1759866300764,0.00180118,4472.6,4472.5,6.0339]
[1759866301062,3.2078,4473.6,4473.5,2.8261]
[1759866301364,0.4747335,4473.6,4473.5,2.8261]
[1759866302063,0.47636841,4473.6,4473.5,2.8261]
[1759866302858,0.00163491,4473.6,4473.5,2.8261]
[1759866304261,3.8799,4474.5,4474.4,2.4254]
[1759866304461,5.29398465,4474.5,4474.4,2.4254]
[1759866304661,9.00992119,4474.5,4474.4,2.4254]
[1759866305267,1.78985,4474.1,4474.0,2.1167]
[1759866305567,1.78985,4474.1,4474.0,2.11827527]
[1759866305768,1.78985,4474.1,4474.0,2.82767527]
[1759866305961,0.224,4474.1,4474.0,2.82767527]
[1759866306466,4.28435695,4474.5,4474.4,2.4254]
[1759866306662,4.50835695,4474.5,4474.4,2.4254]
[1759866306864,8.10468086,4474.5,4474.4,2.4254]
[1759866307372,7.88068086,4474.5,4474.4,2.4254]
[1759866307670,8.10468086,4474.5,4474.4,2.4254]
[1759866308564,8.92358086,4474.5,4474.4,1.0226]
[1759866308765,2.60875,4474.1,4474.0,0.00157527]
[1759866308963,2.83275,4474.1,4474.0,0.00157527]
[1759866309164,10.74061819,4474.1,4474.0,0.00157527]
[1759866309363,10.51661819,4474.1,4474.0,0.00157527]
[1759866309568,10.74061819,4474.1,4474.0,0.00157527]
[1759866309960,10.51661819,4474.1,4474.0,0.00157527]
[1759866310163,4.69771819,4474.1,4474.0,2.11827527]
[1759866310366,4.92171819,4474.1,4474.0,2.11827527]
[1759866310668,5.74061819,4474.1,4474.0,2.11827527]
[1759866310868,4.92171819,4474.1,4474.0,2.82767527]
[1759866311565,4.69771819,4474.1,4474.0,2.82767527]
[1759866311860,5.51661819,4474.1,4474.0,1.42487527]
[1759866312169,5.74061819,4474.1,4474.0,1.02417527]
[1759866312362,5.74061819,4474.1,4474.0,0.00157527]
[1759866312966,10.74061819,4474.1,4474.0,0.00157527]
[1759866314168,2.60734,4473.1,4473.0,4.6311]
[1759866314370,2.83134,4473.1,4473.0,3.2078]
[1759866314666,0.4023,4472.5,4472.3,4.40947292]
[1759866314872,1.6117,4472.4,4472.3,6.12547292]
[1759866315069,1.6117,4472.4,4472.3,6.83730437]
[1759866315462,0.8961,4472.4,4472.3,6.83730437]
[1759866315673,0.224,4472.4,4472.3,6.83730437]
[1759866316075,4.0252,4473.1,4472.9,2.4254]
[1759866316076,1.78995,4473.0,4472.9,2.4254]
[1759866316366,4.86167131,4473.0,4472.9,2.4254]